fUSD/lending_fUSD_20240919
["ID","MTS","AMOUNT","RATE_DAILY","PERIOD"]
[338608013,1726774826992,213.89,0.0001228,2]
[338608014,1726774827284,213.89,0.00012283,2]
[338608015,1726774827555,213.89,0.00012286,2]
[338608016,1726774827806,213.89,0.00012289,2]
[338608017,1726774828005,150.0,0.00012299,2]
[338608018,1726774828036,213.89,0.00012293,2]
[338608019,1726774828260,213.89,0.00012296,2]
[338608020,1726774828496,213.89,0.00012299,2]
[338608021,1726774828797,507.39,0.00012299,2]
[338608022,1726774828914,213.89,0.00012302,2]
[338608023,1726774829169,213.89,0.00012306,2]
[338608024,1726774829383,213.89,0.00012309,2]
[338608025,1726774829616,213.89,0.00012312,2]
[338608026,1726774829828,213.89,0.00012315,2]
[338608027,1726774830045,213.89,0.00012318,2]
[338608028,1726774917055,150.0,0.00012676,2]
[338608029,1726774969942,578.82,0.00012242,2]
[338608030,1726774999507,250.0,0.00012279,2]
[338608031,1726775008759,175.12,0.00012647,2]
[338608032,1726775060170,507.9,0.00012279,2]
[338608033,1726775061745,1022.79,0.00010361,2]
[338608034,1726775062135,1022.79,0.00012625,2]
[338608035,1726775098319,180.72,0.00012279,2]
[338608036,1726775144148,275.16,0.00012172,2]
[338608037,1726775148125,1000.0,0.00012172,2]
[338608038,1726775155816,2000.0,0.00012172,2]
[338608039,1726775165627,150.0,0.00022986,120]
[338608040,1726775187252,250.0,0.00012213,2]
[338608041,1726775250814,597.96,0.0001231,2]
[338608042,1726775266124,1050.0,0.00011,2]
[338608043,1726775352434,42706.0,0.00012672,2]
[338608044,1726775387928,155.16,0.00012172,2]
[338608045,1726775388144,155.16,0.00012183,2]
[338608046,1726775388378,155.16,0.00012193,2]
[338608047,1726775388605,155.16,0.00012203,2]
[338608048,1726775388817,155.16,0.00012213,2]
[338608049,1726775389018,155.16,0.00012223,2]
[338608050,1726775389639,155.16,0.00012233,2]
[338608056,1726775405101,173.74,0.00012738,2]
[338608057,1726775415225,500.0,0.00011164,2]
[338608058,1726775416828,500.0,0.00012534,2]
[338608061,1726775431673,-648.443,0.00012748,2]
[338608062,1726775431684,-169.176,0.00012748,2]
[338608063,1726775431693,-150.0,0.00012753,2]
[338608064,1726775431703,-150.0,0.00012757,2]
[338608065,1726775431712,-150.0,0.00012767,2]
[338608066,1726775431722,-300.0,0.00012768,2]
[338608067,1726775431731,-10000.0,0.00012769,2]
[338608068,1726775431741,-151.97,0.0001279,2]
[338608070,1726775431751,-469.67151968,0.00012799,2]
[338608071,1726775431761,-1783.0,0.00012799,20]
[338608072,1726775431770,-150.0,0.00012799,2]
[338608073,1726775431780,-299.99,0.00012799,2]
[338608074,1726775431789,-428.99,0.000128,2]
[338608075,1726775431800,-210106.12874439,0.000128,2]
[338608076,1726775431811,-1474.18482912,0.000128,2]
[338608079,1726775437472,-640.91615652,0.00012769,2]
[338608080,1726775437580,-6239.65297149,0.00012769,2]
[338608087,1726775439519,-1380.55500402,0.00012769,2]
[338608088,1726775439532,-1271.8256352,0.00012769,2]
[338608089,1726775439677,-467.05023277,0.00012769,2]
[338608090,1726775439692,-743.68976723,0.00012769,2]
[338608091,1726775439704,-493.9451486,0.00012769,2]
[338608092,1726775439716,-2366.61029721,0.00012769,2]
[338608093,1726775439731,-3459.53316755,0.00012769,2]
[338608094,1726775439742,-56641.45444996,0.000128,2]
[338608095,1726775439751,-4086240.2670572,0.000128,2]
[338608150,1726775442611,-854.55749319,0.000128,2]
[338608151,1726775442624,-8739.24518048,0.000128,2]
[338608152,1726775442663,-2494.99999999,0.000128,2]
[338608159,1726775445541,-381.428,0.000128,2]
[338608160,1726775445599,-5681.33999999,0.000128,2]
[338608161,1726775463233,233.2434613,0.0001254,2]
[338608162,1726775474830,211.70582699,0.000127,2]
[338608163,1726775478447,1727.4821,0.000127,2]
[338608164,1726775482033,500.0,0.00011164,2]
[338608165,1726775483602,500.0,0.00012534,2]
[338608166,1726775507213,31114.7605,0.000127,2]
[338608167,1726775524182,190.48,0.00010959,2]
[338608168,1726775527129,500.0,0.00011164,2]
[338608169,1726775532835,22720.82,0.00012538,2]
[338608170,1726775535378,169.71,0.00012538,2]
[338608171,1726775544960,250.0,0.00012538,2]
[338608172,1726775599829,425.22,0.00012463,2]
[338608173,1726775602687,334.12,0.00012468,2]
[338608174,1726775603390,500.0,0.00011164,2]
[338608175,1726775603422,4229.4293,0.000127,2]
[338608176,1726775604294,1576.732982,0.000127,2]
[338608177,1726775605022,500.0,0.00012534,2]
[338608178,1726775631146,320.60220561,0.000127,2]
[338608179,1726775642584,1005.94,0.0001059,2]
[338608180,1726775676966,2622.0242,0.000127,2]
[338608181,1726775716068,200.0,0.00012468,2]
[338608182,1726775723998,1234.47285193,0.000127,2]
[338608183,1726775771020,500.0,8.972e-05,2]
[338608184,1726775772770,500.0,0.00010342,2]
[338608185,1726775774666,500.0,0.00011712,2]
[338608186,1726775782445,250.0,0.00012468,2]
[338608187,1726775794763,217.12067785,0.000127,2]
[338608188,1726775805118,150.0,0.00022986,120]
[338608189,1726775890103,159.44630465,0.000127,2]
[338608190,1726776068561,167.03,0.0001273,2]
[338608191,1726776111907,3211.77,0.00012385,2]
[338608192,1726776132257,212.61,0.00012385,2]
[338608193,1726776251149,230.482276,0.00012725,2]
[338608194,1726776272738,250.0,0.00012305,2]
[338608195,1726776289062,174.67,0.00010959,2]
[338608196,1726776299157,1032.53,0.0001043,2]
[338608197,1726776299408,1032.53,0.00012694,2]
[338608198,1726776300985,2000.0,0.00012348,2]
[338608199,1726776314056,150.8509707,0.00011515,2]
[338608200,1726776397983,150.0,0.00022986,120]
[338608201,1726776474186,250.0,0.00012436,2]
[338608202,1726776507681,1000.0,0.0001249,2]
[338608206,1726776578816,500.0,0.00011164,2]
[338608207,1726776580837,500.0,0.00012534,2]
[338608229,1726776631657,-300.0,0.00012789,2]
[338608230,1726776631667,-4913.28861283,0.0001279,2]
[338608231,1726776631679,-4773.11977575,0.0001279,2]
[338608232,1726776631690,-11327.70965733,0.0001279,2]
[338608233,1726776631699,-156.12,0.0001279,2]
[338608234,1726776631709,-166.42136767,0.0001279,2]
[338608235,1726776631719,-150.0,0.00012798,2]
[338608236,1726776631729,-500.0,0.00012799,2]
[338608237,1726776631738,-384.55510475,0.00012799,2]
[338608238,1726776631748,-644.328,0.00012799,2]
[338608239,1726776631758,-173.861,0.00012799,2]
[338608240,1726776631768,-1356.7844038,0.00012799,2]
[338608241,1726776631778,-1130.6392881,0.00012799,2]
[338608242,1726776631789,-8610.6189013,0.00012799,2]
[338608243,1726776631798,-38749.60227706,0.000128,2]
[338608244,1726776631813,-700.0,0.000128,2]
[338608245,1726776631827,-1098.10124655,0.000128,2]
[338608246,1726776631839,-688.39999162,0.000128,2]
[338608247,1726776631850,-2194.55656055,0.000128,2]
[338608248,1726776631862,-6026.12542846,0.000128,2]
[338608249,1726776631874,-3291.72950663,0.000128,2]
[338608253,1726776632224,-218086.94153715,0.000128,2]
[338608254,1726776632236,-5243.29172088,0.000128,2]
[338608255,1726776632248,-592.36206145,0.000128,2]
[338608256,1726776632260,-2035.89616596,0.000128,2]
[338608257,1726776632270,-3504.07490294,0.000128,2]
[338608258,1726776632281,-16709.1511438,0.000128,2]
[338608259,1726776632291,-3848.36825959,0.000128,2]
[338608260,1726776632302,-5925.17501481,0.000128,2]
[338608261,1726776632314,-564.33272314,0.000128,2]
[338608262,1726776632325,-2966.48754,0.000128,2]
[338608263,1726776632336,-45063.46960216,0.000128,2]
[338608264,1726776632347,-278.60878409,0.000128,2]
[338608265,1726776632359,-541.65536624,0.000128,2]
[338608266,1726776632370,-1963.7448324,0.000128,2]
[338608267,1726776632381,-2218.35862201,0.000128,2]
[338608268,1726776632392,-476.53959897,0.000128,2]
[338608269,1726776632404,-418.7005346,0.000128,2]
[338608270,1726776632415,-1300.0,0.000128,2]
[338608271,1726776637307,500.0,0.00011164,2]
[338608273,1726776637632,-1454.72444938,0.000128,2]
[338608275,1726776637643,-2953.88686576,0.000128,2]
[338608276,1726776637654,-8524.51148996,0.000128,2]
[338608277,1726776637665,-845.302431,0.000128,2]
[338608278,1726776637676,-3178.61306239,0.000128,2]
[338608279,1726776637687,-452.95619467,0.000128,2]
[338608280,1726776637698,-11520.88776301,0.000128,2]
[338608281,1726776637708,-468.87,0.000128,2]
[338608282,1726776637719,-345.44,0.000128,2]
[338608283,1726776637730,-13142.68775836,0.000128,2]
[338608284,1726776637741,-2901.32341379,0.000128,2]
[338608285,1726776637751,-24210.59509431,0.000128,2]
[338608286,1726776637762,-1264.43557993,0.000128,2]
[338608287,1726776637773,-60447.01838342,0.000128,2]
[338608288,1726776637787,-699.69900693,0.000128,2]
[338608289,1726776637798,-1056.9517954,0.000128,2]
[338608290,1726776637848,-6525.06999584,0.000128,2]
[338608291,1726776637903,-1653.30074455,0.000128,2]
[338608292,1726776637915,-1138.0,0.000128,2]
[338608293,1726776637928,-5833.80983025,0.000128,2]
[338608294,1726776638913,500.0,0.00012534,2]
[338608296,1726776639685,-21181.19999998,0.000128,2]
[338608353,1726776642203,-641.04032029,0.000128,2]
[338608354,1726776642362,-1027.23639687,0.000128,2]
[338608355,1726776642376,-840.77658634,0.000128,2]
[338608357,1726776642387,-1700.0,0.000128,2]
[338608358,1726776642399,-30993.07578089,0.000128,2]
[338608359,1726776642411,-642.84,0.000128,2]
[338608360,1726776642422,-1094.57625342,0.000128,2]
[338608361,1726776642434,-1620.92916631,0.000128,2]
[338608362,1726776642445,-6625.67,0.000128,2]
[338608363,1726776642457,-524.21910153,0.000128,2]
[338608364,1726776642472,-1775.61495039,0.000128,2]
[338608365,1726776642483,-518.424,0.000128,2]
[338608366,1726776642495,-2015.94855758,0.000128,2]
[338608373,1726776642652,-491.05867986,0.000128,2]
[338608374,1726776642663,-795.489987,0.000128,2]
[338608375,1726776642674,-622.9,0.000128,2]
[338608376,1726776642685,-9684.84752836,0.000128,2]
[338608377,1726776642697,-291.73346888,0.000128,2]
[338608378,1726776642708,-92402.99795642,0.000128,2]
[338608379,1726776642761,-399.99459917,0.000128,2]
[338608380,1726776642773,-1371.56063522,0.000128,2]
[338608381,1726776642784,-2117.46158505,0.000128,2]
[338608382,1726776642822,-5200.0,0.000128,2]
[338608383,1726776642833,-3592.67573094,0.000128,2]
[338608384,1726776642870,-2498.82070866,0.000128,2]
[338608385,1726776642881,-11198.58222077,0.000128,2]
[338608386,1726776642893,-1509.89121034,0.000128,2]
[338608387,1726776642904,-4924.92,0.000128,2]
[338608388,1726776642915,-4134.07317211,0.000128,2]
[338608389,1726776642927,-2149.47125223,0.000128,2]
[338608390,1726776642938,-1200.0,0.000128,2]
[338608391,1726776642949,-8264.97603201,0.000128,2]
[338608393,1726776645595,-29942.48729999,0.000128,2]
[338608394,1726776645606,-2073.29355406,0.000128,2]
[338608395,1726776645703,-6115.45973799,0.000128,2]
[338608396,1726776645758,-3417.34393201,0.000128,2]
[338608397,1726776645812,-711.38074383,0.000128,2]
[338608398,1726776645868,-631.44235829,0.000128,2]
[338608399,1726776645880,-1215.30012531,0.000128,2]
[338608400,1726776645922,-78229.67342884,0.000128,2]
[338608401,1726776645933,-831.659,0.000128,2]
[338608422,1726776647360,3584.4609,0.000127,2]
[338608423,1726776664025,154.85,0.00012617,2]
[338608424,1726776664280,154.85,0.0001268,2]
[338608425,1726776672225,2983.79799324,0.00012617,2]
[338608426,1726776681177,214.2399,0.000127,2]
[338608427,1726776685593,213.8018,0.000127,2]
[338608428,1726776689221,326.1077,0.000127,2]
[338608429,1726776689270,38509.7304,0.000127,2]
[338608430,1726776693537,23900.0,0.00012575,2]
[338608431,1726776699199,7658.9519,0.000127,2]
[338608432,1726776699786,506.6185,0.000127,2]
[338608433,1726776707160,6736.9809,0.000127,2]
[338608434,1726776721465,3399.23897511,0.0001268,2]
[338608435,1726776725256,1144.7797,0.000127,2]
[338608436,1726776727903,507.45,0.00012579,2]
[338608437,1726776750278,35418.4264,0.000127,2]
[338608438,1726776764122,500.0,0.00011164,2]
[338608439,1726776765717,500.0,0.00012534,2]
[338608440,1726776813522,500.0,0.00012698,2]
[338608441,1726776818919,157.91,0.00010959,2]
[338608443,1726776829623,512.87,0.00012414,2]
[338608444,1726776875032,849.23835392,0.00012699,2]
[338608445,1726776880053,849.23835391,0.00012699,2]
[338608446,1726776885057,849.23835391,0.00012699,2]
[338608447,1726776890064,849.23835391,0.00012699,2]
[338608448,1726776892037,1003.34,0.00010497,2]
[338608449,1726776895028,849.23835391,0.00012699,2]
[338608450,1726776900023,849.23835391,0.000127,2]
[338608451,1726776905057,849.23835391,0.000127,2]
[338608452,1726776910090,849.23835391,0.000127,2]
[338608453,1726776915391,849.23835391,0.000127,2]
[338608454,1726776920063,849.23835391,0.000127,2]
[338608455,1726776952685,1000.0,0.0001269,2]
[338608456,1726776970962,826.5722,0.0001269,2]
[338608457,1726776980633,21575.687,0.0001269,2]
[338608458,1726777007681,19085.6414,0.0001269,2]
[338608459,1726777037127,566.755,0.0001269,2]
[338608460,1726777039864,4389.6255,0.0001269,2]
[338608461,1726777047851,199.4246973,0.00012699,2]
[338608462,1726777057300,8897.529,0.0001269,2]
[338608463,1726777068964,214.2399,0.0001269,2]
[338608464,1726777070797,1050.0,0.00011,2]
[338608465,1726777103862,7924.9599,0.0001269,2]
[338608466,1726777130555,260.9922,0.0001269,2]
[338608467,1726777143010,9025.7035,0.0001269,2]
[338608468,1726777155182,1428.2992,0.0001269,2]
[338608469,1726777158261,827.9067,0.0001269,2]
[338608470,1726777218238,270.23793475,0.000127,2]
[338608471,1726777226891,155.50038797,0.00022999,120]
[338608472,1726777234217,250.0,0.00012188,2]
[338608473,1726777239169,167.0,0.00012554,2]
[338608474,1726777270590,171.65,0.00012204,2]
[338608475,1726777320037,23900.0,0.00012204,2]
[338608476,1726777337118,315.35,0.00012204,2]
[338608477,1726777366451,340.3042,0.0001269,2]
[338608478,1726777369068,395.48,0.000122,2]
[338608479,1726777390359,503.32,0.000122,2]
[338608480,1726777408676,302.07900313,0.00023,120]
[338608481,1726777412379,500.0,0.00012698,2]
[338608482,1726777424073,159.48,0.000122,2]
[338608483,1726777443266,250.0,0.00012189,2]
[338608484,1726777444225,323.50557523,0.00023,120]
[338608485,1726777461016,988.78,0.00010354,2]
[338608486,1726777461657,988.78,0.00012618,2]
[338608487,1726777535567,1000.0,0.00012271,2]
[338608517,1726777831810,-159.42201488,0.0001276,2]
[338608519,1726777831819,-1814.71535246,0.0001278,2]
[338608520,1726777831869,-326.31725353,0.0001278,2]
[338608521,1726777831878,-151.54,0.0001278,2]
[338608522,1726777831886,-182.46621072,0.00012789,2]
[338608523,1726777831982,-240.23815699,0.00012789,2]
[338608524,1726777831994,-559.76184301,0.00012789,2]
[338608537,1726777832150,-89.91615699,0.00012789,2]
[338608539,1726777832159,-178.237,0.00012789,2]
[338608541,1726777832168,-181.84684301,0.00012789,2]
[338608552,1726777837866,-118.15315699,0.00012789,2]
[338608553,1726777837876,-300.0,0.00012789,2]
[338608554,1726777837885,-150.0,0.00012789,2]
[338608555,1726777837896,-35707.90406513,0.0001279,2]
[338608556,1726777837977,-985.02,0.0001279,2]
[338608557,1726777838089,-423.5032,0.0001279,2]
[338608558,1726777838100,-585.70767439,0.0001279,2]
[338608562,1726777839779,-1469.6911387,0.0001279,2]
[338608563,1726777839836,-1777.7292,0.0001279,2]
[338608564,1726777839895,-4262.43535608,0.0001279,2]
[338608565,1726777839907,-4019.09127962,0.0001279,2]
[338608566,1726777839918,-315.6,0.0001279,2]
[338608567,1726777839931,-1653.67272979,0.0001279,2]
[338608568,1726777839952,-809.26010496,0.0001279,2]
[338608569,1726777839963,-2298.40162838,0.0001279,2]
[338608570,1726777840011,-96904.15840643,0.0001279,2]
[338608571,1726777840023,-600.607841,0.0001279,2]
[338608572,1726777842630,247.5158,0.0001269,2]
[338608579,1726777842898,-5149.13413065,0.0001279,2]
[338608580,1726777842956,-15440.87716127,0.0001279,2]
[338608581,1726777843070,-29142.31862841,0.0001279,2]
[338608582,1726777843086,-17425.3167448,0.0001279,2]
[338608583,1726777843098,-16268.07293523,0.0001279,2]
[338608584,1726777843110,-1203.92,0.0001279,2]
[338608585,1726777843122,-782.4782933,0.0001279,2]
[338608586,1726777845789,-268.71844669,0.0001279,2]
[338608587,1726777845801,-16682.80522336,0.0001279,2]
[338608588,1726777845812,-9831.76687634,0.0001279,2]
[338608589,1726777845824,-8179.73972213,0.0001279,2]
[338608590,1726777845835,-4511.90414,0.0001279,2]
[338608591,1726777845854,-20530.34335293,0.0001279,2]
[338608592,1726777845914,-295154.68881284,0.0001279,2]
[338608593,1726777845972,-549.96057904,0.0001279,2]
[338608594,1726777861482,250.0,0.00012312,2]
[338608595,1726777866774,12351.7357,0.0001269,2]
[338608596,1726777899772,167.0,0.00012681,2]
[338608597,1726777918481,226.3,0.00012308,2]
[338608598,1726777951535,1054.34,0.00012348,2]
[338608599,1726777955385,251.66,0.00012308,2]
[338608600,1726778015342,2000.0,0.00012269,2]
[338608601,1726778018455,961.81,0.00010351,2]
[338608603,1726778018678,961.81,0.00012615,2]
[338608604,1726778071533,4714.2156947,0.000127,2]
[338608605,1726778108393,200.0,0.00012269,2]
[338608607,1726778134186,190.62,0.00010959,2]
[338608608,1726778162813,3256.0601,0.000127,2]
[338608611,1726778271441,292.8626,0.000127,2]
[338608612,1726778410612,190.90777657,0.00012689,2]
[338608613,1726778426129,250.0,0.0001235,2]
[338608614,1726778448803,171.65,0.00012336,2]
[338608615,1726778463440,216.1903478,0.000127,2]
[338608616,1726778530283,456.01,0.00012336,2]
[338608617,1726778544796,449.25,0.00012336,2]
[338608618,1726778577152,899.99,0.00010419,2]
[338608619,1726778577419,899.99,0.00012682,2]
[338608620,1726778596740,10182.06,0.00012295,2]
[338608621,1726778671854,151.88,0.00010959,2]
[338608622,1726778740737,250.0,0.00012329,2]
[338608623,1726778742724,500.0,0.00010082,2]
[338608624,1726778743251,500.0,8.22e-05,2]
[338608625,1726778743580,500.0,0.00010082,2]
[338608626,1726778744031,500.0,8.986e-05,2]
[338608627,1726778744898,500.0,0.0001096,2]
[338608628,1726778745169,500.0,0.00011452,2]
[338608629,1726778745600,500.0,0.00011726,2]
[338608630,1726778849635,250.0,0.00012303,2]
[338608631,1726778856331,324.7673108,0.00012453,2]
[338608632,1726778875403,1050.0,0.00011,2]
[338608633,1726778892147,1000.0,0.00012262,2]
[338608634,1726778985200,250.0,0.00012219,2]
[338608635,1726779025003,171.06,0.00012626,2]
[338608637,1726779032020,-150.0,0.00012767,2]
[338608638,1726779032030,-729.36353194,0.0001278,2]
[338608639,1726779032041,-484.32,0.0001278,2]
[338608640,1726779032052,-503.022718,0.0001278,2]
[338608641,1726779032063,-1346.50221221,0.0001278,2]
[338608642,1726779032078,-1722.85904324,0.0001278,2]
[338608643,1726779032087,-654.118,0.00012789,2]
[338608644,1726779032096,-182.155,0.00012789,2]
[338608645,1726779032106,-3319.11270908,0.00012789,2]
[338608646,1726779032116,-150.0,0.00012789,2]
[338608647,1726779032126,-96491.05914742,0.0001279,2]
[338608648,1726779032135,-1000.0,0.00012799,2]
[338608649,1726779032145,-273.28689609,0.00012799,2]
[338608650,1726779032154,-9044.04587671,0.000128,2]
[338608651,1726779032166,-3172.38668386,0.000128,2]
[338608652,1726779032192,-1786.71591369,0.000128,2]
[338608653,1726779032203,-470.6676,0.000128,2]
[338608654,1726779032215,-1097.34227907,0.000128,2]
[338608655,1726779032258,-8868.9113244,0.000128,2]
[338608656,1726779032269,-724.42266643,0.000128,2]
[338608657,1726779032282,-490.46366303,0.000128,2]
[338608658,1726779032293,-697.89036063,0.000128,2]
[338608659,1726779032320,-1332.63115809,0.000128,2]
[338608676,1726779038002,-7637.75624893,0.000128,2]
[338608677,1726779038013,-902.43125198,0.000128,2]
[338608678,1726779038024,-2364.01451426,0.000128,2]
[338608679,1726779038035,-724.97184001,0.000128,2]
[338608680,1726779038045,-10729.9312,0.000128,2]
[338608681,1726779038055,-1503.10643675,0.000128,2]
[338608682,1726779038065,-421.78588728,0.000128,2]
[338608683,1726779038074,-27310.07262118,0.000128,2]
[338608684,1726779038119,-273.87550485,0.000128,2]
[338608685,1726779038128,-9681.01263141,0.000128,2]
[338608686,1726779038139,-918.84607546,0.000128,2]
[338608687,1726779038236,-425.4,0.000128,2]
[338608688,1726779038247,-2709.48663959,0.000128,2]
[338608696,1726779039949,-336.51153027,0.000128,2]
[338608697,1726779040006,-1072.66280005,0.000128,2]
[338608698,1726779040018,-412.39,0.000128,2]
[338608699,1726779040029,-21033.57546785,0.000128,2]
[338608700,1726779040041,-16959.17918805,0.000128,2]
[338608701,1726779040052,-4302.89567398,0.000128,2]
[338608702,1726779040067,-10465.05047589,0.000128,2]
[338608703,1726779040125,-1360.57203682,0.000128,2]
[338608704,1726779040136,-1234.255256,0.000128,2]
[338608705,1726779040147,-3297.81886019,0.000128,2]
[338608706,1726779040182,-69527.19404031,0.000128,2]
[338608707,1726779040191,-24360.34233363,0.000128,2]
[338608712,1726779040338,-573.88174932,0.000128,2]
[338608715,1726779040350,-1692.25627838,0.000128,2]
[338608717,1726779040361,-449.03088406,0.000128,2]
[338608719,1726779040372,-685.08301683,0.000128,2]
[338608721,1726779040383,-418.43404489,0.000128,2]
[338608855,1726779042967,-313.505555,0.000128,2]
[338608857,1726779042980,-304.74896181,0.000128,2]
[338608859,1726779042992,-394.59,0.000128,2]
[338608861,1726779043003,-258.105,0.000128,2]
[338608864,1726779043023,-45257.73761913,0.000128,2]
[338608867,1726779043034,-6180.65784,0.000128,2]
[338608868,1726779043045,-24149.19161144,0.000128,2]
[338608869,1726779043079,-630.12224999,0.000128,2]
[338608870,1726779043090,-333.59523142,0.000128,2]
[338608871,1726779043101,-13300.3472261,0.000128,2]
[338608872,1726779043112,-15384.41003735,0.000128,2]
[338608873,1726779043124,-3476.63696484,0.000128,2]
[338608874,1726779043135,-865.26308682,0.000128,2]
[338608875,1726779043190,-1070.09574185,0.000128,2]
[338608876,1726779043201,-5925.69599542,0.000128,2]
[338608877,1726779043212,-5988.50674018,0.000128,2]
[338608878,1726779043247,-630.99339394,0.000128,2]
[338608879,1726779043259,-1061.28,0.000128,2]
[338608883,1726779044394,944.144,0.000127,2]
[338608887,1726779045950,-536.14803747,0.000128,2]
[338608888,1726779045962,-1449.96550931,0.000128,2]
[338608889,1726779046006,-591.5645175,0.000128,2]
[338608890,1726779046016,-908.94469596,0.000128,2]
[338608891,1726779046063,-1412.93673964,0.000128,2]
[338608892,1726779046074,-47345.75421239,0.000128,2]
[338608893,1726779046119,-4068.391154,0.000128,2]
[338608894,1726779046130,-17853.34084675,0.000128,2]
[338608895,1726779046142,-30787.84688716,0.000128,2]
[338608896,1726779046181,-75252.7271623,0.000128,2]
[338608897,1726779046193,-4281.0519054,0.000128,2]
[338608898,1726779046239,-4883.9047737,0.000128,2]
[338608899,1726779047382,6093.9462,0.0001269,2]
[338608900,1726779058011,150.0,0.00012426,2]
[338608901,1726779078644,386.34,0.00012426,2]
[338608902,1726779098440,879.29,0.00010385,2]
[338608903,1726779098666,879.29,0.00012649,2]
[338608904,1726779120045,1500.0,0.00012469,2]
[338608905,1726779214333,500.0,0.00012697,2]
[338608906,1726779214804,500.0,0.00012698,2]
[338608907,1726779216149,173.62,0.00010959,2]
[338608908,1726779219097,200.0,0.00012697,2]
[338608909,1726779219552,200.0,0.00012698,2]
[338608910,1726779289536,303.91,0.00012481,2]
[338608911,1726779306508,173199.22578714,0.00022,60]
[338608912,1726779314602,185.90686756,0.00012699,2]
[338608913,1726779422597,200.0,0.00012346,2]
[338608914,1726779571356,250.0,0.00012304,2]
[338608915,1726779612085,335.03,0.00012346,2]
[338608916,1726779789862,857.48,0.00010338,2]
[338608917,1726779790300,857.48,0.00012602,2]
[338608918,1726779804169,157.29,0.00010959,2]
[338608919,1726779815606,500.0,0.00012698,2]
[338608920,1726779848224,257.29,0.00012256,2]
[338608921,1726779969366,23890.0,0.00012262,2]
[338608922,1726779971437,840.0,0.00012256,2]
[338608943,1726780174087,329.51,0.00012254,2]
[338608946,1726780226160,166.76,0.00012582,2]
[338608948,1726780232160,-630.796,0.00012794,2]
[338608949,1726780232169,-172.101,0.00012794,2]
[338608950,1726780232179,-55.26690953,0.00012799,2]
[338608951,1726780232191,-163.36260734,0.00012799,2]
[338608952,1726780232200,-256.09561545,0.00012799,2]
[338608953,1726780232216,-43.90438455,0.00012799,2]
[338608954,1726780232230,-150.0,0.00012799,2]
[338608955,1726780232239,-300.0,0.00012799,2]
[338608956,1726780232249,-584.0,0.000128,2]
[338608957,1726780232259,-4633.08310238,0.000128,2]
[338608958,1726780232275,-2354.73262451,0.000128,2]
[338608959,1726780232286,-453.51,0.000128,2]
[338608960,1726780232297,-1705.09183423,0.000128,2]
[338608961,1726780232333,-1894.86731563,0.000128,2]
[338608962,1726780232393,-3989.45713517,0.000128,2]
[338608963,1726780232404,-13495.05892328,0.000128,2]
[338608964,1726780232415,-267.15623008,0.000128,2]
[338608965,1726780234421,250.0,0.00012208,2]
[338608966,1726780236529,150.68,0.00012386,2]
[338608970,1726780238237,-3348.17102556,0.000128,2]
[338608971,1726780238249,-8482.08300515,0.000128,2]
[338608972,1726780238262,-5107.45783421,0.000128,2]
[338608973,1726780238274,-1044.62063914,0.000128,2]
[338608974,1726780238297,-329.30699229,0.000128,2]
[338608975,1726780238353,-840.62547059,0.000128,2]